[Event "Kvibergspelen September 2019"]
[Site "Prioritet Serneke Arena, Krutvagen 2, Gothenburg, Sweden"]
[Date "2019.09.27"]
[Round "2.11"]
[White "Hardlei, Johan"]
[Black "Akesson, Ralf"]
[Result "0-1"]
[TimeControl "15 minutes + 5 seconds per move from move one (Round 1 - 4) / 90 minutes + 30 seconds per move from move one (Round 5 - 8)"]
[BlackTitle "GM"]
[WhiteFideId "1440489"]
[BlackFideId "1700120"]
[WhiteElo "2054"]
[BlackElo "2367"]

1. Nf3 {[%clk 00:15:08]} {[%emt 00:00:02]} Nf6 {[%clk 00:15:06]} {[%emt
00:00:04]} 2. b3 {[%clk 00:15:11]} {[%emt 00:00:03]} c5 {[%clk 00:14:53]}
{[%emt 00:00:18]} 3. Bb2 {[%clk 00:15:15]} {[%emt 00:00:01]} Nc6 {[%clk
00:14:56]} 4. e3 {[%clk 00:15:19]} e6 {[%clk 00:14:46]} {[%emt 00:00:15]} 5. d4
{[%clk 00:15:20]} {[%emt 00:00:05]} b6 {[%clk 00:14:29]} {[%emt 00:00:22]} 6.
Be2 {[%clk 00:15:08]} {[%emt 00:00:17]} Bb7 {[%clk 00:14:32]} {[%emt 00:00:02]}
7. O-O {[%clk 00:15:12]} {[%emt 00:00:02]} Be7 {[%clk 00:14:31]} {[%emt
00:00:06]} 8. c4 {[%clk 00:15:14]} {[%emt 00:00:03]} cxd4 {[%clk 00:14:29]}
{[%emt 00:00:06]} 9. Nxd4 {[%clk 00:15:18]} O-O {[%clk 00:14:25]} {[%emt
00:00:10]} 10. Bf3 {[%clk 00:15:02]} {[%emt 00:00:22]} Qb8 {[%clk 00:14:10]}
{[%emt 00:00:19]} 11. Nd2 {[%clk 00:14:35]} {[%emt 00:00:31]} Rd8 {[%clk
00:13:53]} {[%emt 00:00:23]} 12. Qe2 {[%clk 00:14:01]} {[%emt 00:00:40]} d5
{[%clk 00:13:27]} {[%emt 00:00:30]} 13. Rfd1 {[%clk 00:13:32]} {[%emt
00:00:34]} Ne5 {[%clk 00:13:11]} {[%emt 00:00:21]} 14. Nb5 {[%clk 00:12:20]}
{[%emt 00:01:17]} a6 {[%clk 00:12:48]} {[%emt 00:00:27]} 15. Bxe5 {[%clk
00:11:38]} {[%emt 00:00:48]} Qxe5 {[%clk 00:12:51]} {[%emt 00:00:02]} 16. Nd4
{[%clk 00:11:32]} {[%emt 00:00:10]} Rac8 {[%clk 00:12:41]} {[%emt 00:00:15]} 17.
cxd5 {[%clk 00:11:12]} {[%emt 00:00:25]} Nxd5 {[%clk 00:12:32]} {[%emt
00:00:14]} 18. Nc4 {[%clk 00:11:08]} {[%emt 00:00:09]} Qb8 {[%clk 00:12:29]}
{[%emt 00:00:08]} 19. Rac1 {[%clk 00:10:34]} {[%emt 00:00:40]} Ba8 {[%clk
00:11:59]} {[%emt 00:00:35]} 20. h3 {[%clk 00:08:52]} {[%emt 00:01:47]} b5
{[%clk 00:11:44]} {[%emt 00:00:19]} 21. Bxd5 {[%clk 00:05:30]} {[%emt
00:03:27]} Bxd5 {[%clk 00:11:43]} {[%emt 00:00:06]} 22. e4 {[%clk 00:02:59]}
{[%emt 00:02:37]} Ba8 {[%clk 00:11:07]} {[%emt 00:00:40]} 23. Nb2 {[%clk
00:00:55]} {[%emt 00:02:09]} Rxc1 {[%clk 00:11:04]} {[%emt 00:00:08]} 0-1

[Event "Kvibergspelen September 2019"]
[Site "Prioritet Serneke Arena, Krutvagen 2, Gothenburg, Sweden"]
[Date "2019.09.27"]
[Round "2.12"]
[White "Bellon Lopez, Juan"]
[Black "Troedsson, Anton"]
[Result "1-0"]
[TimeControl "15 minutes + 5 seconds per move from move one (Round 1 - 4) / 90 minutes + 30 seconds per move from move one (Round 5 - 8)"]
[WhiteTitle "GM"]
[WhiteFideId "2200031"]
[BlackFideId "1746006"]
[WhiteElo "2334"]
[BlackElo "2056"]

1. d4 {[%clk 00:15:09]} {[%emt 00:05:17]} d5 {[%clk 00:15:09]} {[%emt
00:00:02]} 2. Bg5 {[%clk 00:15:13]} {[%emt 00:00:02]} c5 {[%clk 00:15:11]}
{[%emt 00:00:03]} 3. c3 {[%clk 00:14:58]} {[%emt 00:00:20]} Qb6 {[%clk
00:14:50]} {[%emt 00:00:26]} 4. Qb3 {[%clk 00:14:37]} {[%emt 00:00:26]} c4
{[%clk 00:14:30]} {[%emt 00:00:25]} 5. Qc2 {[%clk 00:14:30]} {[%emt 00:00:11]}
Nf6 {[%clk 00:13:25]} {[%emt 00:01:10]} 6. Nd2 {[%clk 00:14:22]} {[%emt
00:00:13]} g6 {[%clk 00:10:56]} {[%emt 00:02:34]} 7. e4 {[%clk 00:13:57]}
{[%emt 00:00:30]} Nxe4 {[%clk 00:10:25]} {[%emt 00:00:37]} 8. Nxe4 {[%clk
00:13:52]} {[%emt 00:00:09]} Bf5 {[%clk 00:10:22]} {[%emt 00:00:08]} 9. f3
{[%clk 00:13:40]} {[%emt 00:00:17]} dxe4 {[%clk 00:10:07]} {[%emt 00:00:20]} 10.
g4 {[%clk 00:12:57]} {[%emt 00:00:47]} Bd7 {[%clk 00:09:30]} {[%emt 00:00:43]}
11. Bxc4 {[%clk 00:12:15]} {[%emt 00:00:47]} Qa5 {[%clk 00:07:45]} {[%emt
00:01:49]} 12. Bh4 {[%clk 00:11:10]} {[%emt 00:01:09]} Nc6 {[%clk 00:07:32]}
{[%emt 00:00:20]} 13. O-O-O {[%clk 00:10:26]} {[%emt 00:00:49]} Bh6+ {[%clk
00:06:08]} {[%emt 00:01:29]} 14. Kb1 {[%clk 00:10:30]} {[%emt 00:00:01]} exf3
{[%clk 00:05:56]} {[%emt 00:00:17]} 15. Nxf3 {[%clk 00:09:46]} {[%emt
00:00:49]} Bxg4 {[%clk 00:05:50]} {[%emt 00:00:11]} 16. Rdf1 {[%clk 00:09:05]}
{[%emt 00:00:45]} O-O {[%clk 00:05:44]} {[%emt 00:00:11]} 17. h3 {[%clk
00:07:55]} {[%emt 00:01:14]} Bf5 {[%clk 00:04:36]} {[%emt 00:01:14]} 18. Bd3
{[%clk 00:07:59]} {[%emt 00:00:01]} Be6 {[%clk 00:04:23]} {[%emt 00:00:18]} 19.
b3 {[%clk 00:07:46]} {[%emt 00:00:17]} Rac8 {[%clk 00:04:24]} {[%emt 00:00:05]}
20. Be1 {[%clk 00:07:21]} {[%emt 00:00:30]} Qa3 {[%clk 00:03:49]} {[%emt
00:00:40]} 21. Qb2 {[%clk 00:07:16]} {[%emt 00:00:09]} Qd6 {[%clk 00:03:44]}
{[%emt 00:00:11]} 22. Bd2 {[%clk 00:07:01]} {[%emt 00:00:20]} Bg7 {[%clk
00:03:46]} {[%emt 00:00:03]} 23. Ng5 {[%clk 00:06:56]} {[%emt 00:00:10]} Bd5
{[%clk 00:03:49]} {[%emt 00:00:02]} 24. Ne4 {[%clk 00:06:37]} {[%emt 00:00:24]}
Bxe4 {[%clk 00:03:18]} {[%emt 00:00:36]} 25. Bxe4 {[%clk 00:06:40]} {[%emt
00:00:01]} e5 {[%clk 00:03:19]} {[%emt 00:00:04]} 26. d5 {[%clk 00:06:13]}
{[%emt 00:00:32]} Ne7 {[%clk 00:03:12]} {[%emt 00:00:12]} 27. c4 {[%clk
00:05:54]} {[%emt 00:00:25]} b5 {[%clk 00:03:16]} {[%emt 00:00:01]} 28. Ka1
{[%clk 00:05:10]} {[%emt 00:00:48]} bxc4 {[%clk 00:03:12]} {[%emt 00:00:10]} 29.
Rc1 {[%clk 00:04:37]} {[%emt 00:00:38]} f5 {[%clk 00:02:55]} {[%emt 00:00:22]}
30. bxc4 {[%clk 00:04:00]} {[%emt 00:00:43]} fxe4 {[%emt 00:00:07]} 31. Bb4 Qd7
{[%clk 00:02:46]} {[%emt 00:00:12]} 32. Qa3 {[%clk 00:04:08]} {[%emt 00:00:02]}
Rf3 {[%clk 00:02:34]} {[%emt 00:00:16]} 33. Qa6 {[%clk 00:04:03]} {[%emt
00:00:10]} Nf5 {[%clk 00:01:45]} {[%emt 00:00:54]} 34. c5 {[%clk 00:03:55]}
{[%emt 00:00:14]} Rb8 {[%clk 00:01:34]} {[%emt 00:00:17]} 35. c6 {[%clk
00:03:01]} {[%emt 00:00:59]} Qxd5 {[%clk 00:01:37]} {[%emt 00:00:02]} 36. c7
{[%clk 00:03:05]} Qd4+ {[%emt 00:00:04]} 37. Bc3 Rxc3 {[%clk 00:01:32]} {[%emt
00:00:10]} 38. cxb8=Q+ {[%clk 00:03:12]} {[%emt 00:00:03]} Rc8+ {[%clk
00:01:34]} {[%emt 00:00:03]} 39. Qb2 {[%clk 00:03:16]} 1-0

[Event "Kvibergspelen September 2019"]
[Site "Prioritet Serneke Arena, Krutvagen 2, Gothenburg, Sweden"]
[Date "2019.09.27"]
[Round "2.13"]
[White "Attefall, Fredrik"]
[Black "Ernst, Thomas"]
[Result "0-1"]
[TimeControl "15 minutes + 5 seconds per move from move one (Round 1 - 4) / 90 minutes + 30 seconds per move from move one (Round 5 - 8)"]
[BlackTitle "GM"]
[WhiteFideId "1706357"]
[BlackFideId "1700065"]
[WhiteElo "2040"]
[BlackElo "2328"]

1. e4 {[%clk 00:15:07]} {[%emt 00:00:02]} c5 {[%clk 00:15:09]} {[%emt
00:00:02]} 2. Nf3 {[%clk 00:15:10]} {[%emt 00:00:02]} d6 {[%clk 00:15:12]}
{[%emt 00:00:01]} 3. d4 {[%clk 00:15:12]} {[%emt 00:00:03]} cxd4 {[%clk
00:15:15]} {[%emt 00:00:02]} 4. Nxd4 {[%clk 00:15:15]} {[%emt 00:00:02]} Nf6
{[%clk 00:15:19]} {[%emt 00:00:02]} 5. f3 {[%clk 00:15:19]} {[%emt 00:00:02]}
e5 {[%clk 00:15:16]} {[%emt 00:00:07]} 6. Nb3 {[%clk 00:15:12]} {[%emt
00:00:12]} d5 {[%clk 00:15:14]} {[%emt 00:00:08]} 7. Bg5 {[%clk 00:14:43]}
{[%emt 00:00:33]} Be6 {[%clk 00:15:06]} {[%emt 00:00:13]} 8. Bxf6 {[%clk
00:12:57]} {[%emt 00:01:52]} gxf6 {[%clk 00:15:08]} {[%emt 00:00:02]} 9. exd5
{[%clk 00:11:47]} {[%emt 00:01:15]} Qxd5 {[%clk 00:15:09]} {[%emt 00:00:03]} 10.
Qxd5 {[%clk 00:11:40]} {[%emt 00:00:13]} Bxd5 {[%clk 00:15:12]} {[%emt
00:00:01]} 11. Nc3 {[%clk 00:11:25]} {[%emt 00:00:21]} Be6 {[%clk 00:15:13]}
{[%emt 00:00:04]} 12. Ne4 {[%clk 00:10:48]} {[%emt 00:00:43]} Nd7 {[%clk
00:14:53]} {[%emt 00:00:24]} 13. Bb5 {[%clk 00:10:51]} {[%emt 00:00:03]} Be7
{[%clk 00:14:16]} {[%emt 00:00:41]} 14. O-O-O {[%clk 00:10:46]} {[%emt
00:00:11]} O-O-O {[%clk 00:14:10]} {[%emt 00:00:11]} 15. Rd3 {[%clk 00:09:50]}
{[%emt 00:01:02]} f5 {[%clk 00:12:30]} {[%emt 00:01:44]} 16. Nd6+ {[%clk
00:07:36]} {[%emt 00:02:19]} Kc7 {[%clk 00:12:28]} {[%emt 00:00:07]} 17. Bxd7
{[%clk 00:07:37]} {[%emt 00:00:05]} Rxd7 {[%clk 00:12:26]} {[%emt 00:00:07]} 18.
Nb5+ {[%clk 00:07:40]} {[%emt 00:00:01]} Kb6 {[%clk 00:11:30]} {[%emt
00:00:58]} 19. Rxd7 {[%clk 00:07:38]} {[%emt 00:00:10]} Bxd7 {[%clk 00:11:33]}
{[%emt 00:00:02]} 20. Nc3 {[%clk 00:07:41]} {[%emt 00:00:02]} Bc6 {[%clk
00:11:03]} {[%emt 00:00:34]} 21. Re1 {[%clk 00:07:36]} {[%emt 00:00:11]} Re8
{[%clk 00:10:34]} {[%emt 00:00:34]} 22. Kb1 {[%clk 00:07:11]} {[%emt 00:00:31]}
Bb4 {[%clk 00:09:55]} {[%emt 00:00:42]} 23. Nd2 {[%clk 00:06:46]} {[%emt
00:00:32]} Kc7 {[%clk 00:09:21]} {[%emt 00:00:37]} 24. a3 {[%clk 00:06:18]}
{[%emt 00:00:34]} Bxc3 {[%clk 00:09:10]} {[%emt 00:00:17]} 25. bxc3 {[%clk
00:06:22]} f4 {[%clk 00:09:01]} {[%emt 00:00:13]} 26. Nc4 {[%clk 00:04:43]}
{[%emt 00:01:45]} e4 {[%clk 00:08:52]} {[%emt 00:00:13]} 27. fxe4 {[%clk
00:04:40]} {[%emt 00:00:08]} Rxe4 {[%clk 00:08:51]} {[%emt 00:00:05]} 28. Rxe4
{[%clk 00:04:33]} {[%emt 00:00:13]} Bxe4 {[%clk 00:08:55]} {[%emt 00:00:01]} 29.
g3 {[%clk 00:04:27]} {[%emt 00:00:11]} f3 {[%clk 00:07:26]} {[%emt 00:01:33]}
30. Kc1 {[%clk 00:04:02]} {[%emt 00:00:32]} f2 {[%clk 00:07:27]} {[%emt
00:00:03]} 31. Ne3 {[%clk 00:04:05]} {[%emt 00:00:01]} Bg2 {[%emt 00:00:22]}
0-1

[Event "Kvibergspelen September 2019"]
[Site "Prioritet Serneke Arena, Krutvagen 2, Gothenburg, Sweden"]
[Date "2019.09.27"]
[Round "2.14"]
[White "Lyngsjo, Hakan"]
[Black "Ziegler, Ari"]
[Result "1-0"]
[TimeControl "15 minutes + 5 seconds per move from move one (Round 1 - 4) / 90 minutes + 30 seconds per move from move one (Round 5 - 8)"]
[BlackTitle "IM"]
[WhiteFideId "1701649"]
[BlackFideId "1700987"]
[WhiteElo "2031"]
[BlackElo "2299"]

1. e4 {[%clk 00:15:06]} {[%emt 00:00:03]} c5 {[%clk 00:15:03]} {[%emt
00:00:07]} 2. Nf3 {[%clk 00:15:09]} {[%emt 00:00:03]} d6 {[%clk 00:15:06]}
{[%emt 00:00:02]} 3. Bb5+ {[%clk 00:15:11]} {[%emt 00:00:03]} Nc6 {[%clk
00:15:08]} {[%emt 00:00:03]} 4. Bxc6+ {[%clk 00:15:05]} {[%emt 00:00:11]} bxc6
{[%clk 00:15:11]} {[%emt 00:00:02]} 5. O-O {[%clk 00:15:05]} {[%emt 00:00:05]}
e5 {[%clk 00:15:00]} {[%emt 00:00:16]} 6. c3 {[%clk 00:14:42]} {[%emt
00:00:28]} g5 {[%clk 00:14:26]} {[%emt 00:00:39]} 7. d4 {[%clk 00:13:34]}
{[%emt 00:01:13]} g4 {[%clk 00:14:29]} {[%emt 00:00:02]} 8. Ng5 {[%clk
00:13:38]} h6 {[%clk 00:14:06]} {[%emt 00:00:29]} 9. Nxf7 {[%clk 00:13:34]}
{[%emt 00:00:09]} Kxf7 {[%clk 00:14:09]} {[%emt 00:00:02]} 10. dxe5 {[%clk
00:13:37]} {[%emt 00:00:02]} Be6 {[%clk 00:13:48]} {[%emt 00:00:25]} 11. f3
{[%clk 00:12:34]} {[%emt 00:01:09]} g3 {[%clk 00:13:38]} {[%emt 00:00:15]} 12.
f4 {[%clk 00:12:34]} {[%emt 00:00:05]} gxh2+ {[%clk 00:13:38]} {[%emt
00:00:04]} 13. Kh1 {[%clk 00:12:34]} {[%emt 00:00:05]} h5 {[%clk 00:11:59]}
{[%emt 00:01:45]} 14. f5 {[%clk 00:11:58]} {[%emt 00:00:41]} Bc4 {[%clk
00:12:01]} {[%emt 00:00:02]} 15. e6+ {[%clk 00:11:27]} {[%emt 00:00:37]} Ke8
{[%clk 00:11:53]} {[%emt 00:00:13]} 16. Rf3 {[%clk 00:10:35]} {[%emt 00:00:57]}
Nf6 {[%clk 00:11:40]} {[%emt 00:00:18]} 17. Bg5 {[%clk 00:10:10]} {[%emt
00:00:29]} Be7 {[%clk 00:11:20]} {[%emt 00:00:25]} 18. Nd2 {[%clk 00:10:09]}
{[%emt 00:00:07]} Ba6 {[%clk 00:10:37]} {[%emt 00:00:48]} 19. Rh3 {[%clk
00:09:47]} {[%emt 00:00:27]} Qb6 {[%clk 00:08:38]} {[%emt 00:02:04]} 20. e5
{[%clk 00:08:54]} {[%emt 00:00:58]} Ng4 {[%clk 00:06:57]} {[%emt 00:01:46]} 21.
Qxg4 {[%clk 00:08:50]} {[%emt 00:00:09]} hxg4 {[%clk 00:06:59]} {[%emt
00:00:02]} 22. Rxh8+ {[%clk 00:08:54]} {[%emt 00:00:01]} Bf8 {[%clk 00:07:02]}
{[%emt 00:00:02]} 23. f6 {[%clk 00:08:54]} {[%emt 00:00:04]} Kd8 {[%clk
00:06:28]} {[%emt 00:00:40]} 24. Rxf8+ {[%clk 00:07:12]} {[%emt 00:01:47]} Kc7
{[%clk 00:06:30]} {[%emt 00:00:02]} 25. Rf7+ {[%clk 00:07:15]} {[%emt
00:00:02]} Kb8 {[%clk 00:06:33]} {[%emt 00:00:02]} 26. e7 {[%clk 00:07:11]} 1-0

[Event "Kvibergspelen September 2019"]
[Site "Prioritet Serneke Arena, Krutvagen 2, Gothenburg, Sweden"]
[Date "2019.09.27"]
[Round "2.15"]
[White "Andersson, Lars"]
[Black "Sidorchuk, Dmitry"]
[Result "0-1"]
[TimeControl "15 minutes + 5 seconds per move from move one (Round 1 - 4) / 90 minutes + 30 seconds per move from move one (Round 5 - 8)"]
[WhiteFideId "1706772"]
[BlackFideId "14110903"]
[WhiteElo "2029"]
[BlackElo "2266"]

1. d4 {[%clk 00:15:07]} {[%emt 00:00:03]} d5 {[%clk 00:13:19]} {[%emt
00:01:52]} 2. Bf4 {[%clk 00:15:10]} {[%emt 00:00:02]} Nf6 {[%clk 00:13:02]}
{[%emt 00:00:22]} 3. e3 {[%clk 00:15:13]} {[%emt 00:00:02]} e6 {[%clk
00:12:44]} {[%emt 00:00:23]} 4. Nf3 {[%clk 00:15:05]} {[%emt 00:00:13]} Be7
{[%clk 00:12:01]} {[%emt 00:00:48]} 5. h3 {[%clk 00:14:48]} {[%emt 00:00:22]}
O-O {[%clk 00:12:01]} {[%emt 00:00:05]} 6. Nbd2 {[%clk 00:14:45]} {[%emt
00:00:08]} Nbd7 {[%clk 00:11:32]} {[%emt 00:00:34]} 7. Bd3 {[%clk 00:14:37]}
{[%emt 00:00:13]} c5 {[%clk 00:11:34]} {[%emt 00:00:03]} 8. c3 {[%clk
00:14:39]} {[%emt 00:00:03]} b6 {[%clk 00:11:22]} {[%emt 00:00:17]} 9. Qe2
{[%clk 00:14:31]} {[%emt 00:00:13]} Bb7 {[%clk 00:11:12]} {[%emt 00:00:15]} 10.
O-O {[%clk 00:14:24]} {[%emt 00:00:12]} h6 {[%clk 00:11:12]} {[%emt 00:00:05]}
11. Rad1 {[%clk 00:14:19]} {[%emt 00:00:10]} Ne4 {[%clk 00:09:38]} {[%emt
00:01:38]} 12. Bb1 {[%clk 00:13:32]} {[%emt 00:00:52]} f5 {[%clk 00:09:09]}
{[%emt 00:00:34]} 13. Ne5 {[%clk 00:13:08]} {[%emt 00:00:28]} Nxe5 {[%clk
00:08:29]} {[%emt 00:00:45]} 14. Bxe5 {[%clk 00:13:11]} {[%emt 00:00:03]} a5
{[%clk 00:07:48]} {[%emt 00:00:46]} 15. Bd3 {[%clk 00:12:01]} {[%emt 00:01:15]}
Bd6 {[%clk 00:06:58]} {[%emt 00:00:55]} 16. Nf3 {[%clk 00:11:26]} {[%emt
00:00:40]} Nf6 {[%clk 00:06:22]} {[%emt 00:00:40]} 17. Bxd6 {[%clk 00:11:17]}
{[%emt 00:00:14]} Qxd6 {[%clk 00:06:25]} {[%emt 00:00:02]} 18. Ne5 {[%clk
00:11:17]} {[%emt 00:00:05]} Nd7 {[%clk 00:06:08]} {[%emt 00:00:23]} 19. f4
{[%clk 00:08:25]} {[%emt 00:02:57]} Nxe5 {[%clk 00:05:58]} {[%emt 00:00:14]} 20.
fxe5 {[%clk 00:08:28]} {[%emt 00:00:02]} Qe7 {[%clk 00:05:47]} {[%emt
00:00:17]} 21. Kh2 {[%clk 00:08:16]} {[%emt 00:00:17]} c4 {[%clk 00:05:06]}
{[%emt 00:00:47]} 22. Bb1 {[%clk 00:07:59]} {[%emt 00:00:21]} Bc6 {[%clk
00:04:42]} {[%emt 00:00:29]} 23. g4 {[%clk 00:07:45]} {[%emt 00:00:19]} g6
{[%clk 00:04:16]} {[%emt 00:00:32]} 24. gxf5 {[%clk 00:07:36]} {[%emt
00:00:14]} exf5 {[%clk 00:04:01]} {[%emt 00:00:19]} 25. Rg1 {[%clk 00:07:34]}
{[%emt 00:00:06]} Kh7 {[%clk 00:03:52]} {[%emt 00:00:15]} 26. Rg3 {[%clk
00:06:28]} {[%emt 00:01:11]} Be8 {[%clk 00:02:49]} {[%emt 00:01:08]} 27. Rdg1
{[%clk 00:06:15]} {[%emt 00:00:18]} Ra7 {[%clk 00:02:44]} {[%emt 00:00:11]} 28.
Qg2 {[%clk 00:06:04]} {[%emt 00:00:15]} Qe6 {[%clk 00:02:41]} {[%emt 00:00:09]}
29. h4 {[%clk 00:05:34]} {[%emt 00:00:34]} b5 {[%clk 00:02:33]} {[%emt
00:00:13]} 30. Bc2 {[%clk 00:05:13]} {[%emt 00:00:27]} b4 {[%clk 00:02:34]}
{[%emt 00:00:04]} 31. Rf1 {[%clk 00:04:27]} {[%emt 00:00:51]} bxc3 {[%clk
00:02:33]} {[%emt 00:00:06]} 32. bxc3 {[%clk 00:04:31]} Rb7 {[%clk 00:02:38]}
33. Bd1 {[%clk 00:03:54]} {[%emt 00:00:42]} a4 {[%clk 00:02:26]} {[%emt
00:00:17]} 34. h5 {[%clk 00:03:11]} {[%emt 00:00:47]} g5 {[%clk 00:02:23]}
{[%emt 00:00:08]} 35. Bg4 {[%clk 00:03:08]} {[%emt 00:00:08]} Kg7 {[%clk
00:02:11]} {[%emt 00:00:18]} 36. Bf3 {[%clk 00:03:08]} {[%emt 00:00:05]} Rb5
{[%clk 00:02:01]} {[%emt 00:00:15]} 37. Rg1 {[%clk 00:03:00]} {[%emt 00:00:13]}
Kh8 {[%clk 00:01:49]} {[%emt 00:00:17]} 38. Rf1 {[%clk 00:02:39]} {[%emt
00:00:26]} Rg8 {[%clk 00:01:47]} {[%emt 00:00:07]} 39. Qc2 {[%clk 00:02:23]}
{[%emt 00:00:21]} a3 {[%clk 00:01:47]} {[%emt 00:00:05]} 40. Rb1 {[%clk
00:02:25]} {[%emt 00:00:02]} g4 {[%clk 00:01:42]} {[%emt 00:00:10]} 41. Rxb5
{[%clk 00:01:59]} {[%emt 00:00:32]} Bxb5 {[%clk 00:01:46]} {[%emt 00:00:01]} 42.
Bxd5 {[%clk 00:01:46]} {[%emt 00:00:18]} Qxd5 {[%clk 00:01:38]} {[%emt
00:00:13]} 43. Qxf5 {[%clk 00:01:49]} {[%emt 00:00:02]} Bc6 {[%clk 00:01:09]}
{[%emt 00:00:34]} 44. Qf6+ {[%clk 00:01:47]} {[%emt 00:00:06]} Rg7 {[%clk
00:01:05]} {[%emt 00:00:09]} 45. Qxh6+ {[%clk 00:01:22]} {[%emt 00:00:31]} Kg8
{[%clk 00:01:09]} {[%emt 00:00:01]} 46. Rg1 {[%clk 00:00:56]} {[%emt 00:00:30]}
g3+ {[%clk 00:01:10]} {[%emt 00:00:04]} 47. Kh3 {[%clk 00:00:37]} {[%emt
00:00:25]} Bd7+ {[%clk 00:01:15]} {[%emt 00:00:01]} 0-1

[Event "Kvibergspelen September 2019"]
[Site "Prioritet Serneke Arena, Krutvagen 2, Gothenburg, Sweden"]
[Date "2019.09.27"]
[Round "2.16"]
[White "Malmstig, Erik"]
[Black "Bergmanolson, Michael"]
[Result "1-0"]
[TimeControl "15 minutes + 5 seconds per move from move one (Round 1 - 4) / 90 minutes + 30 seconds per move from move one (Round 5 - 8)"]
[WhiteTitle "FM"]
[WhiteFideId "1702866"]
[BlackFideId "1701436"]
[WhiteElo "2257"]
[BlackElo "2050"]

1. d4 {[%clk 00:15:08]} {[%emt 00:00:01]} Nf6 {[%clk 00:15:08]} {[%emt
00:00:03]} 2. Bg5 {[%clk 00:15:12]} {[%emt 00:00:01]} e6 {[%clk 00:14:51]}
{[%emt 00:00:22]} 3. e4 {[%clk 00:15:14]} {[%emt 00:00:03]} h6 {[%clk
00:14:34]} {[%emt 00:00:22]} 4. Bxf6 {[%clk 00:15:16]} {[%emt 00:00:03]} Qxf6
{[%clk 00:14:38]} {[%emt 00:00:02]} 5. Qd2 {[%clk 00:15:19]} {[%emt 00:00:01]}
d6 {[%clk 00:14:41]} {[%emt 00:00:02]} 6. Nc3 {[%clk 00:15:19]} {[%emt
00:00:04]} c6 {[%clk 00:14:14]} {[%emt 00:00:33]} 7. O-O-O {[%clk 00:15:00]}
{[%emt 00:00:24]} Nd7 {[%clk 00:13:18]} {[%emt 00:01:01]} 8. f4 {[%clk
00:14:51]} {[%emt 00:00:15]} e5 {[%clk 00:12:35]} {[%emt 00:00:49]} 9. Nge2
{[%clk 00:13:58]} {[%emt 00:00:57]} Be7 {[%clk 00:11:50]} {[%emt 00:00:50]} 10.
g3 {[%clk 00:13:44]} {[%emt 00:00:19]} exd4 {[%clk 00:11:32]} {[%emt 00:00:23]}
11. Nxd4 {[%clk 00:13:44]} {[%emt 00:00:05]} Nc5 {[%clk 00:11:33]} {[%emt
00:00:05]} 12. Bg2 {[%clk 00:12:41]} {[%emt 00:01:08]} Bg4 {[%clk 00:11:16]}
{[%emt 00:00:21]} 13. Rde1 {[%clk 00:12:35]} {[%emt 00:00:10]} O-O-O {[%clk
00:11:08]} {[%emt 00:00:14]} 14. Kb1 {[%clk 00:11:32]} {[%emt 00:01:09]} Kb8
{[%clk 00:08:58]} {[%emt 00:02:15]} 15. f5 {[%clk 00:11:18]} {[%emt 00:00:19]}
g6 {[%clk 00:04:44]} {[%emt 00:04:19]} 16. h3 {[%clk 00:10:59]} {[%emt
00:00:23]} gxf5 {[%clk 00:04:48]} {[%emt 00:00:02]} 17. exf5 {[%clk 00:10:36]}
{[%emt 00:00:27]} Bh5 {[%clk 00:04:14]} {[%emt 00:00:39]} 18. g4 {[%clk
00:10:38]} {[%emt 00:00:03]} d5 {[%clk 00:04:18]} {[%emt 00:00:02]} 19. gxh5
{[%clk 00:10:17]} {[%emt 00:00:25]} Bd6 {[%clk 00:04:17]} {[%emt 00:00:07]} 20.
Qf2 {[%clk 00:09:56]} {[%emt 00:00:25]} Rhg8 {[%clk 00:04:17]} {[%emt
00:00:06]} 21. Nde2 {[%clk 00:09:39]} {[%emt 00:00:21]} Rde8 {[%clk 00:03:47]}
{[%emt 00:00:36]} 22. Ref1 {[%clk 00:09:19]} {[%emt 00:00:25]} Rg5 {[%clk
00:03:28]} {[%emt 00:00:23]} 23. h4 {[%clk 00:08:42]} {[%emt 00:00:42]} Rg7
{[%clk 00:03:14]} {[%emt 00:00:18]} 24. Bh3 {[%clk 00:08:03]} {[%emt 00:00:44]}
Ne4 {[%clk 00:02:54]} {[%emt 00:00:26]} 25. Nxe4 {[%clk 00:08:01]} {[%emt
00:00:07]} Rxe4 {[%clk 00:02:58]} 26. Rfg1 {[%clk 00:07:10]} {[%emt 00:00:57]}
Rb4 {[%clk 00:02:18]} {[%emt 00:00:44]} 27. c3 {[%clk 00:06:57]} {[%emt
00:00:18]} Rxg1+ {[%clk 00:01:39]} {[%emt 00:00:44]} 28. Rxg1 {[%clk 00:06:48]}
{[%emt 00:00:15]} Rb6 {[%clk 00:01:42]} {[%emt 00:00:02]} 29. Nd4 {[%clk
00:06:23]} {[%emt 00:00:28]} Be5 {[%clk 00:01:26]} {[%emt 00:00:22]} 30. Qe3
{[%clk 00:06:02]} {[%emt 00:00:26]} c5 {[%clk 00:00:57]} {[%emt 00:00:35]} 31.
Rg8+ {[%clk 00:05:39]} {[%emt 00:00:27]} Kc7 {[%clk 00:01:01]} {[%emt
00:00:02]} 32. Nb3 {[%clk 00:05:33]} {[%emt 00:00:10]} d4 {[%clk 00:00:56]}
{[%emt 00:00:11]} 33. cxd4 {[%clk 00:05:32]} {[%emt 00:00:06]} cxd4 {[%clk
00:00:47]} {[%emt 00:00:14]} 34. Qd3 {[%clk 00:05:10]} {[%emt 00:00:26]} Rc6
{[%clk 00:00:34]} {[%emt 00:00:18]} 35. Bg2 {[%clk 00:05:02]} {[%emt 00:00:13]}
1-0